[Event "I Liga Centralne Srbije"]
[Site "Bajina Bašta, Serbia"]
[Date "2020.10.16"]
[Round "10.1"]
[White "Ivic, Velimir"]
[Black "Ristic, Nebojsa B"]
[Result "1-0"]
[ECO "B06"]
[WhiteElo "2548"]
[BlackElo "2312"]
[Annotator "Knez"]
[PlyCount "61"]
[EventDate "2020.??.??"]
[TimeControl "90"]

1. d4 d6 {[%emt 0:48:35]} 2. e4 {[%emt 0:00:21]} g6 {[%emt 0:00:08]} 3. Nc3 {
[%emt 0:00:11]} Bg7 {[%emt 0:00:07]} 4. Be3 {[%emt 0:02:54]} a6 {[%emt 0:00:12]
} 5. g4 {[%emt 0:00:46]} b5 {[%emt 0:02:22]} 6. Bg2 {[%emt 0:00:31]} Bb7 {
[%emt 0:00:12]} 7. h4 {[%emt 0:01:01]} h6 {[%emt 0:05:15]} 8. g5 {[%emt 0:02:
23]} hxg5 {[%emt 0:02:06]} 9. h5 {[%emt 0:00:10]} gxh5 {[%emt 0:04:59]} 10.
Rxh5 {[%emt 0:01:48]} Nf6 {[%emt 0:00:32]} 11. Rxh8+ {[%emt 0:03:24]} Bxh8 {
[%emt 0:00:03]} 12. Bxg5 {[%emt 0:03:32]} Nbd7 {[%emt 0:01:48]} 13. Qd3 {
[%emt 0:15:53]} c6 {[%emt 0:11:13]} 14. Qh3 {[%emt 0:13:12]} Bg7 {[%emt 0:00:
12]} 15. f4 {[%emt 0:04:02]} b4 {[%emt 0:04:53]} 16. Nd1 {[%emt 0:02:13]} Qc7 {
[%emt 0:04:59]} 17. Ne3 {[%emt 0:05:00]} e6 {[%emt 0:02:01]} 18. O-O-O {
[%emt 0:06:01]} Nb6 {[%emt 0:28:36]} 19. Ne2 {[%emt 0:12:51]} a5 {[%emt 0:11:
19]} 20. Qh4 {[%emt 0:05:38]} Nfd7 {[%emt 0:01:39]} 21. e5 {[%emt 0:02:35]}
dxe5 {[%emt 0:01:47]} 22. fxe5 {[%emt 0:01:54]} Nxe5 {[%emt 0:01:12]} 23. Qh7 {
[%emt 0:01:46]} Kf8 {[%emt 0:03:51]} 24. Bh6 {[%emt 0:00:18]} Bxh6 {[%emt 0:00:
18]} 25. Qxh6+ {[%emt 0:00:13]} Ke7 {[%emt 0:00:10]} 26. Qh4+ {[%emt 0:02:05]}
f6 {[%emt 0:00:02]} 27. dxe5 {[%emt 0:00:35]} Qxe5 {[%emt 0:00:04]} 28. Qh7+ {
[%emt 0:02:28]} Kf8 {[%emt 0:00:05]} 29. Be4 {[%emt 0:02:28]} Qg5 {[%emt 0:01:
41]} 30. Bg6 {[%emt 0:00:15]} Qxe3+ {[%emt 0:00:20]} 31. Kb1 {[%emt 0:00:08]}
1-0

[Event "I Liga Centralne Srbije"]
[Site "Bajina Bašta, Serbia"]
[Date "2020.10.16"]
[Round "10.1"]
[White "Spasic, Petar"]
[Black "Perunovic, Miodrag"]
[Result "0-1"]
[ECO "B76"]
[WhiteElo "2251"]
[BlackElo "2440"]
[Annotator "Knez"]
[PlyCount "120"]
[EventDate "2020.??.??"]
[TimeControl "90"]
[WhiteClock "0:25:02"]
[BlackClock "0:03:23"]

1. e4 {[%emt 0:00:00]} c5 {[%emt 0:00:00]} 2. Nf3 {[%emt 0:00:00]} g6 {[%emt 0:
00:00]} 3. d4 {[%emt 0:00:00]} cxd4 {[%emt 0:00:00]} 4. Nxd4 {[%emt 0:00:00]}
Nf6 {[%emt 0:00:00]} 5. Nc3 {[%emt 0:00:00]} d6 {[%emt 0:00:00]} 6. Be3 {
[%emt 0:00:00]} Bg7 {[%emt 0:00:00]} 7. f3 {[%emt 0:00:00]} O-O {[%emt 0:00:00]
} 8. Qd2 {[%emt 0:00:00]} Nc6 {[%emt 0:00:00]} 9. O-O-O {[%emt 0:00:00]} Bd7 {
[%emt 0:00:00]} 10. Kb1 {[%emt 0:00:00]} Rc8 {[%emt 0:00:00]} 11. h4 {[%emt 0:
00:00]} Ne5 {[%emt 0:00:00]} 12. g4 {[%emt 0:00:00]} Qa5 {[%emt 0:00:00]} 13.
h5 {[%emt 0:00:00]} Nxf3 {[%emt 0:00:00]} 14. Nxf3 {[%emt 0:00:00]} Rxc3 {
[%emt 0:00:00]} 15. Qxc3 {[%emt 0:00:00]} Qxc3 {[%emt 0:00:00]} 16. bxc3 {
[%emt 0:00:00]} Bxg4 {[%emt 0:00:00]} 17. Bg2 {[%emt 0:00:00]} Nxe4 {[%emt 0:
00:00]} 18. Rd3 {[%emt 0:00:00]} Nxc3+ {[%emt 0:00:00]} 19. Kc1 {[%emt 0:00:00]
} Bf5 {[%emt 0:00:00]} 20. Rd2 {[%emt 0:00:00]} Nxa2+ {[%emt 0:00:00]} 21. Kd1
{[%emt 0:00:00]} Nc3+ {[%emt 0:00:00]} 22. Ke1 {[%emt 0:00:00]} Ne4 {[%emt 0:
00:00]} 23. Rd5 {[%emt 0:00:00]} e6 {[%emt 0:00:00]} 24. Rb5 {[%emt 0:00:00]}
Bc3+ {[%emt 0:00:00]} 25. Kd1 {[%emt 0:00:00]} b6 {[%emt 0:00:00]} 26. Nh4 {
[%emt 0:00:00]} Bg4+ {[%emt 0:00:00]} 27. Bf3 {[%emt 0:00:00]} gxh5 {[%emt 0:
00:00]} 28. Kc1 {[%emt 0:00:00]} f5 {[%emt 0:00:00]} 29. Bxe4 {[%emt 0:00:03]}
fxe4 {[%emt 0:00:00]} 30. Rg5+ {[%emt 0:00:00]} Bg7 {[%emt 0:00:00]} 31. Ng2 {
[%emt 0:00:04]} Rf3 {[%emt 0:00:00]} 32. Kd2 {[%emt 0:00:44]} h6 {[%emt 0:00:
00]} 33. Rb5 {[%emt 0:00:00]} Be5 {[%emt 0:00:00]} 34. Rb3 {[%emt 0:00:06]} d5
{[%emt 0:00:00]} 35. c3 {[%emt 0:00:00]} Rf7 {[%emt 0:00:00]} 36. Ra1 {[%emt 0:
00:00]} Bg3 {[%emt 0:00:00]} 37. Rba3 {[%emt 0:00:00]} h4 {[%emt 0:00:00]} 38.
Nxh4 {[%emt 0:00:00]} Bxh4 {[%emt 0:00:00]} 39. Rxa7 {[%emt 0:00:00]} h5 {
[%emt 0:00:00]} 40. Bxb6 {[%emt 0:00:00]} Bg5+ {[%emt 0:00:00]} 41. Kc2 {
[%emt 0:00:00]} e3 {[%emt 0:00:00]} 42. Rxf7 {[%emt 0:00:00]} Kxf7 {[%emt 0:00:
00]} 43. Kd3 {[%emt 0:00:00]} e2 {[%emt 0:00:00]} 44. Bf2 {[%emt 0:00:00]} Kg6
{[%emt 0:00:00]} 45. Ra8 {[%emt 0:00:00]} Kf7 {[%emt 0:00:00]} 46. Ra7+ {
[%emt 0:00:00]} Kf6 {[%emt 0:00:00]} 47. Ra8 {[%emt 0:00:00]} h4 {[%emt 0:00:
00]} 48. Rh8 {[%emt 0:00:00]} h3 {[%emt 0:00:00]} 49. Rg8 {[%emt 0:00:00]} h2 {
[%emt 0:00:00]} 50. Rh8 {[%emt 0:00:00]} Bf4 {[%emt 0:00:00]} 51. Be1 {[%emt 0:
00:00]} Bf3 {[%emt 0:00:00]} 52. Rh3 {[%emt 0:00:00]} h1=Q {[%emt 0:00:00]} 53.
Rxh1 {[%emt 0:00:00]} Bxh1 {[%emt 0:00:12]} 54. Kxe2 {[%emt 0:00:00]} Be4 {
[%emt 0:00:00]} 55. Bh4+ {[%emt 0:00:00]} Kf7 {[%emt 0:00:00]} 56. Bd8 {
[%emt 0:00:00]} Ke8 {[%emt 0:00:00]} 57. Bf6 {[%emt 0:00:00]} Kd7 {[%emt 0:00:
00]} 58. Bg7 {[%emt 0:00:00]} Kc6 {[%emt 0:00:00]} 59. Bf6 {[%emt 0:00:00]} Kb5
{[%emt 0:00:00]} 60. Be7 {[%emt 0:00:00]} Kc4 {[%emt 0:00:00]} 0-1

[Event "I Liga Centralne Srbije"]
[Site "Bajina Bašta, Serbia"]
[Date "2020.10.16"]
[Round "10.1"]
[White "Pavlovic, Dejan S"]
[Black "Djordjevic, Miroslav"]
[Result "1/2-1/2"]
[ECO "B12"]
[WhiteElo "2390"]
[BlackElo "1885"]
[Annotator "Knez"]
[PlyCount "101"]
[EventDate "2020.??.??"]
[TimeControl "90"]
[WhiteClock "0:01:54"]
[BlackClock "0:01:48"]

1. e4 {[%emt 0:00:00]} c6 {[%emt 0:00:00]} 2. d4 {[%emt 0:00:00]} d5 {[%emt 0:
00:00]} 3. e5 {[%emt 0:00:00]} Bf5 {[%emt 0:00:00]} 4. h4 {[%emt 0:00:00]} h6 {
[%emt 0:00:00]} 5. g4 {[%emt 0:00:00]} Bh7 {[%emt 0:00:00]} 6. e6 {[%emt 0:00:
00]} fxe6 {[%emt 0:00:00]} 7. Bd3 {[%emt 0:00:00]} Nf6 {[%emt 0:00:00]} 8. Bxh7
{[%emt 0:00:00]} Rxh7 {[%emt 0:00:00]} 9. Qd3 {[%emt 0:00:00]} c5 {[%emt 0:00:
00]} 10. Nf3 {[%emt 0:00:00]} Nc6 {[%emt 0:00:00]} 11. g5 {[%emt 0:00:00]} Ne4
{[%emt 0:00:00]} 12. Nbd2 {[%emt 0:00:00]} hxg5 {[%emt 0:00:00]} 13. Nxe4 {
[%emt 0:00:00]} dxe4 {[%emt 0:00:00]} 14. Qxe4 {[%emt 0:00:00]} Qd5 {[%emt 0:
00:00]} 15. Qxd5 {[%emt 0:00:00]} exd5 {[%emt 0:00:00]} 16. Nxg5 {[%emt 0:00:
00]} Rh5 {[%emt 0:00:00]} 17. dxc5 {[%emt 0:00:00]} e6 {[%emt 0:00:00]} 18. Be3
{[%emt 0:00:00]} d4 {[%emt 0:00:00]} 19. Bf4 {[%emt 0:00:00]} e5 {[%emt 0:00:
00]} 20. Bd2 {[%emt 0:00:00]} Be7 {[%emt 0:00:00]} 21. O-O-O {[%emt 0:00:00]}
a5 {[%emt 0:00:00]} 22. Rdg1 {[%emt 0:00:00]} Kd7 {[%emt 0:00:00]} 23. Ne4 {
[%emt 0:00:00]} Rxh4 {[%emt 0:00:00]} 24. Rxh4 {[%emt 0:00:00]} Bxh4 {[%emt 0:
00:00]} 25. Rxg7+ {[%emt 0:00:00]} Be7 {[%emt 0:00:00]} 26. f4 {[%emt 0:00:00]}
Rf8 {[%emt 0:00:00]} 27. Rg4 {[%emt 0:00:00]} Ke6 {[%emt 0:00:00]} 28. Ng3 {
[%emt 0:00:00]} exf4 {[%emt 0:00:00]} 29. Rxf4 {[%emt 0:00:00]} Rxf4 {[%emt 0:
00:00]} 30. Bxf4 {[%emt 0:00:00]} Bxc5 {[%emt 0:00:00]} 31. Kd2 {[%emt 0:00:00]
} Kd5 {[%emt 0:00:00]} 32. a3 {[%emt 0:00:00]} b5 {[%emt 0:00:00]} 33. Bc7 {
[%emt 0:00:00]} a4 {[%emt 0:00:00]} 34. Ne2 {[%emt 0:00:00]} b4 {[%emt 0:00:00]
} 35. axb4 {[%emt 0:00:00]} Bxb4+ {[%emt 0:00:00]} 36. Kc1 {[%emt 0:00:00]} Kc4
{[%emt 0:00:00]} 37. Nf4 {[%emt 0:00:00]} Na5 {[%emt 0:00:00]} 38. Nd3 {
[%emt 0:00:00]} Nc6 {[%emt 0:00:00]} 39. Kb1 {[%emt 0:00:00]} Bf8 {[%emt 0:00:
00]} 40. Bg3 {[%emt 0:00:00]} Bb4 {[%emt 0:00:00]} 41. Kc1 {[%emt 0:00:00]} Bf8
{[%emt 0:00:00]} 42. Be1 {[%emt 0:00:00]} Be7 {[%emt 0:00:00]} 43. Bd2 {
[%emt 0:00:00]} Bf8 {[%emt 0:00:00]} 44. Kd1 {[%emt 0:00:00]} Bd6 {[%emt 0:00:
00]} 45. Ke2 {[%emt 0:00:00]} a3 {[%emt 0:00:00]} 46. bxa3 {[%emt 0:00:00]}
Bxa3 {[%emt 0:00:00]} 47. Kf3 {[%emt 0:00:00]} Nb4 {[%emt 0:00:00]} 48. Bxb4 {
[%emt 0:00:29]} Bxb4 {[%emt 0:00:00]} 49. Ke4 {[%emt 0:00:00]} Bd6 {[%emt 0:00:
00]} 50. Ne1 {[%emt 0:00:00]} Bc5 {[%emt 0:00:00]} 51. Nf3 {[%emt 0:00:00]}
1/2-1/2

[Event "I Liga Centralne Srbije"]
[Site "Bajina Bašta, Serbia"]
[Date "2020.10.16"]
[Round "10.1"]
[White "Banjovic, Sasa"]
[Black "Radovanovic, Dusan"]
[Result "0-1"]
[ECO "E92"]
[WhiteElo "2121"]
[BlackElo "2326"]
[Annotator "Knez"]
[PlyCount "76"]
[EventDate "2020.??.??"]
[TimeControl "90"]
[WhiteClock "0:27:21"]
[BlackClock "0:04:18"]

1. d4 {[%emt 0:00:00]} Nf6 {[%emt 0:00:00]} 2. c4 {[%emt 0:00:00]} g6 {[%emt 0:
00:00]} 3. Nc3 {[%emt 0:00:00]} Bg7 {[%emt 0:00:00]} 4. e4 {[%emt 0:00:00]} d6
{[%emt 0:00:00]} 5. Nf3 {[%emt 0:00:00]} O-O {[%emt 0:00:00]} 6. Be2 {[%emt 0:
00:00]} e5 {[%emt 0:00:00]} 7. dxe5 {[%emt 0:00:00]} dxe5 {[%emt 0:00:00]} 8.
Qxd8 {[%emt 0:00:00]} Rxd8 {[%emt 0:00:00]} 9. Bg5 {[%emt 0:00:00]} Re8 {
[%emt 0:00:00]} 10. Nd5 {[%emt 0:00:00]} Nxd5 {[%emt 0:00:00]} 11. cxd5 {
[%emt 0:00:00]} c6 {[%emt 0:00:00]} 12. Bc4 {[%emt 0:00:00]} cxd5 {[%emt 0:00:
00]} 13. Bxd5 {[%emt 0:00:00]} Nd7 {[%emt 0:00:00]} 14. Nd2 {[%emt 0:00:00]}
Nc5 {[%emt 0:00:00]} 15. Ke2 {[%emt 0:00:00]} Be6 {[%emt 0:00:00]} 16. Bxe6 {
[%emt 0:00:00]} Rxe6 {[%emt 0:00:00]} 17. Rhc1 {[%emt 0:00:00]} Rc6 {[%emt 0:
00:00]} 18. b4 {[%emt 0:00:00]} Ne6 {[%emt 0:00:00]} 19. Rxc6 {[%emt 0:00:00]}
Nd4+ {[%emt 0:00:00]} 20. Kd1 {[%emt 0:00:00]} Nxc6 {[%emt 0:00:00]} 21. a3 {
[%emt 0:00:00]} a5 {[%emt 0:00:00]} 22. b5 {[%emt 0:00:00]} Nd4 {[%emt 0:00:00]
} 23. a4 {[%emt 0:00:00]} f6 {[%emt 0:00:00]} 24. Be3 {[%emt 0:00:00]} Rd8 {
[%emt 0:00:00]} 25. Ra3 {[%emt 0:00:00]} f5 {[%emt 0:00:00]} 26. f3 {[%emt 0:
00:00]} Rc8 {[%emt 0:00:00]} 27. Rd3 {[%emt 0:00:00]} f4 {[%emt 0:00:00]} 28.
Bf2 {[%emt 0:00:00]} b6 {[%emt 0:00:00]} 29. Ra3 {[%emt 0:00:00]} Bf8 {[%emt 0:
00:00]} 30. Ra2 {[%emt 0:00:00]} Rd8 {[%emt 0:00:00]} 31. Ke1 {[%emt 0:00:00]}
Bb4 {[%emt 0:00:00]} 32. Kf1 {[%emt 0:00:00]} Rc8 {[%emt 0:00:00]} 33. g3 {
[%emt 0:00:00]} g5 {[%emt 0:00:00]} 34. gxf4 {[%emt 0:00:00]} gxf4 {[%emt 0:00:
00]} 35. Bxd4 {[%emt 0:00:00]} exd4 {[%emt 0:00:00]} 36. Ke2 {[%emt 0:00:00]}
Rc3 {[%emt 0:00:00]} 37. Nb1 {[%emt 0:00:00]} Re3+ {[%emt 0:00:00]} 38. Kf2 {
[%emt 0:00:00]} d3 {[%emt 0:00:00] Ke1 [%emt 00:01:29]} 0-1

[Event "I Liga Centralne Srbije"]
[Site "Bajina Bašta, Serbia"]
[Date "2020.10.16"]
[Round "10.1"]
[White "Radivojevic, Ivan"]
[Black "Dimitrijevic, Zoran"]
[Result "1-0"]
[ECO "D42"]
[WhiteElo "2365"]
[BlackElo "2088"]
[Annotator "Knez"]
[PlyCount "39"]
[EventDate "2020.??.??"]
[TimeControl "90"]
[WhiteClock "1:18:14"]
[BlackClock "0:54:44"]

1. e4 {[%emt 0:00:00]} c6 {[%emt 0:00:00]} 2. d4 {[%emt 0:00:00]} d5 {[%emt 0:
00:00]} 3. exd5 {[%emt 0:00:00]} cxd5 {[%emt 0:00:00]} 4. c4 {[%emt 0:00:00]}
Nf6 {[%emt 0:00:00]} 5. Nc3 {[%emt 0:00:00]} e6 {[%emt 0:00:00]} 6. Nf3 {
[%emt 0:00:00]} Be7 {[%emt 0:00:00]} 7. cxd5 {[%emt 0:00:00]} Nxd5 {[%emt 0:00:
00]} 8. Bd3 {[%emt 0:00:00]} Nc6 {[%emt 0:00:00]} 9. O-O {[%emt 0:00:00]} Nxc3
{[%emt 0:00:00]} 10. bxc3 {[%emt 0:00:00]} O-O {[%emt 0:00:00]} 11. Re1 {
[%emt 0:00:00]} Bf6 {[%emt 0:00:00]} 12. h4 {[%emt 0:00:00]} Qa5 {[%emt 0:00:
00]} 13. Bd2 {[%emt 0:00:00]} Rd8 {[%emt 0:00:00]} 14. Qe2 {[%emt 0:00:00]} Bd7
{[%emt 0:00:00]} 15. Rab1 {[%emt 0:00:00]} Qc7 {[%emt 0:00:00]} 16. Ng5 {
[%emt 0:00:00]} h6 {[%emt 0:00:00]} 17. Qe4 {[%emt 0:00:00]} Be8 {[%emt 0:00:
00]} 18. Qh7+ {[%emt 0:00:00]} Kf8 {[%emt 0:00:00]} 19. Rxe6 {[%emt 0:00:00]}
fxe6 {[%emt 0:00:00]} 20. Nxe6+ {[%emt 0:00:00]} 1-0

[Event "I Liga Centralne Srbije"]
[Site "Bajina Bašta, Serbia"]
[Date "2020.10.16"]
[Round "10.1"]
[White "Veselinov, Ivica"]
[Black "Marcetic, Nikola"]
[Result "0-1"]
[ECO "B50"]
[WhiteElo "1836"]
[BlackElo "2329"]
[Annotator "Knez"]
[PlyCount "72"]
[EventDate "2020.??.??"]
[TimeControl "90"]
[WhiteClock "0:12:44"]
[BlackClock "0:02:34"]

1. e4 {[%emt 0:00:00]} c5 {[%emt 0:00:00]} 2. Nf3 {[%emt 0:00:00]} d6 {[%emt 0:
00:00]} 3. c4 {[%emt 0:00:00]} Nc6 {[%emt 0:00:00]} 4. g3 {[%emt 0:00:00]} g6 {
[%emt 0:00:00]} 5. Bg2 {[%emt 0:00:00]} Bg7 {[%emt 0:00:00]} 6. Nc3 {[%emt 0:
00:00]} Nf6 {[%emt 0:00:00]} 7. O-O {[%emt 0:00:00]} O-O {[%emt 0:00:00]} 8. d3
{[%emt 0:00:00]} Bg4 {[%emt 0:00:00]} 9. h3 {[%emt 0:00:00]} Bxf3 {[%emt 0:00:
00]} 10. Bxf3 {[%emt 0:00:00]} Ne8 {[%emt 0:00:00]} 11. Bg2 {[%emt 0:00:00]}
Nc7 {[%emt 0:00:00]} 12. a3 {[%emt 0:00:00]} Ne6 {[%emt 0:00:00]} 13. f4 {
[%emt 0:00:00]} Ned4 {[%emt 0:00:00]} 14. f5 {[%emt 0:00:00]} e6 {[%emt 0:00:
00]} 15. fxe6 {[%emt 0:00:00]} fxe6 {[%emt 0:00:00]} 16. Rxf8+ {[%emt 0:00:00]}
Qxf8 {[%emt 0:00:00]} 17. Bf4 {[%emt 0:00:00]} Be5 {[%emt 0:00:00]} 18. Qg4 {
[%emt 0:00:00]} Qg7 {[%emt 0:00:00]} 19. Rb1 {[%emt 0:00:00]} h5 {[%emt 0:00:
00]} 20. Qh4 {[%emt 0:00:00]} Rf8 {[%emt 0:00:00]} 21. Rf1 {[%emt 0:00:00]} a6
{[%emt 0:00:00]} 22. Rf2 {[%emt 0:00:00]} b5 {[%emt 0:00:00]} 23. cxb5 {
[%emt 0:00:00]} axb5 {[%emt 0:00:00]} 24. Nd1 {[%emt 0:00:00]} Bf6 {[%emt 0:00:
00]} 25. Bg5 {[%emt 0:00:00]} Bxg5 {[%emt 0:00:00]} 26. Qxg5 {[%emt 0:00:00]}
Ne5 {[%emt 0:00:00]} 27. Qe3 {[%emt 0:00:00]} Rxf2 {[%emt 0:00:00]} 28. Nxf2 {
[%emt 0:00:00]} Qf6 {[%emt 0:00:00]} 29. Nd1 {[%emt 0:00:00]} Kg7 {[%emt 0:00:
00]} 30. b4 {[%emt 0:00:00]} Nec6 {[%emt 0:00:00]} 31. bxc5 {[%emt 0:00:00]}
dxc5 {[%emt 0:00:00]} 32. Kh2 {[%emt 0:00:00]} Qe5 {[%emt 0:00:00]} 33. Qd2 {
[%emt 0:00:00]} h4 {[%emt 0:00:00]} 34. Qf4 {[%emt 0:00:00]} hxg3+ {[%emt 0:00:
23]} 35. Qxg3 {[%emt 0:00:00]} Nc2 {[%emt 0:00:00]} 36. Qxe5+ {[%emt 0:00:00]}
Nxe5 {[%emt 0:00:00]} 0-1

[Event "I Liga Centralne Srbije"]
[Site "Bajina Bašta, Serbia"]
[Date "2020.10.16"]
[Round "10.5"]
[White "Budisavljevic, Luka"]
[Black "Narancic, Vlado"]
[Result "1-0"]
[ECO "E73"]
[WhiteElo "2454"]
[BlackElo "2281"]
[Annotator "Knez"]
[PlyCount "113"]
[EventDate "2020.??.??"]
[TimeControl "90"]
[WhiteClock "0:07:13"]
[BlackClock "0:03:35"]

1. d4 {[%emt 0:00:00]} Nf6 {[%emt 0:00:00]} 2. c4 {[%emt 0:00:00]} g6 {[%emt 0:
00:00]} 3. Nc3 {[%emt 0:00:00]} Bg7 {[%emt 0:00:00]} 4. e4 {[%emt 0:00:00]} d6
{[%emt 0:00:00]} 5. Be2 {[%emt 0:00:00]} O-O {[%emt 0:00:00]} 6. h4 {[%emt 0:
00:00]} h5 {[%emt 0:00:00]} 7. Nf3 {[%emt 0:00:00]} c5 {[%emt 0:00:00]} 8. d5 {
[%emt 0:00:00]} e6 {[%emt 0:00:00]} 9. O-O {[%emt 0:00:00]} exd5 {[%emt 0:00:
00]} 10. exd5 {[%emt 0:00:00]} Bf5 {[%emt 0:00:00]} 11. Bf4 {[%emt 0:00:00]}
Na6 {[%emt 0:00:00]} 12. Ng5 {[%emt 0:00:00]} Qd7 {[%emt 0:00:00]} 13. Bd3 {
[%emt 0:00:00]} Ne8 {[%emt 0:00:00]} 14. Qf3 {[%emt 0:00:00]} Nb4 {[%emt 0:00:
00]} 15. Be4 {[%emt 0:00:00]} Bxe4 {[%emt 0:00:00]} 16. Qxe4 {[%emt 0:00:00]}
Nf6 {[%emt 0:00:00]} 17. Qb1 {[%emt 0:00:00]} Ng4 {[%emt 0:00:00]} 18. a3 {
[%emt 0:00:00]} Na6 {[%emt 0:00:00]} 19. Nb5 {[%emt 0:00:00]} Ne5 {[%emt 0:00:
00]} 20. Bxe5 {[%emt 0:00:00]} dxe5 {[%emt 0:00:00]} 21. Nc3 {[%emt 0:00:00]}
Rac8 {[%emt 0:00:00]} 22. Qd3 {[%emt 0:00:00]} Nb8 {[%emt 0:00:00]} 23. Rad1 {
[%emt 0:00:00]} Rfe8 {[%emt 0:00:00]} 24. b4 {[%emt 0:00:00]} b6 {[%emt 0:00:
00]} 25. b5 {[%emt 0:00:00]} f5 {[%emt 0:00:00]} 26. d6 {[%emt 0:00:00]} Bf6 {
[%emt 0:00:00]} 27. Rfe1 {[%emt 0:00:00]} Kg7 {[%emt 0:00:00]} 28. Qg3 {
[%emt 0:00:00]} Rcd8 {[%emt 0:00:00]} 29. Rd5 {[%emt 0:00:00]} f4 {[%emt 0:00:
00]} 30. Qd3 {[%emt 0:00:00]} Qg4 {[%emt 0:00:00]} 31. Nce4 {[%emt 0:00:00]}
Nd7 {[%emt 0:00:00]} 32. Nf3 {[%emt 0:00:00]} Bxh4 {[%emt 0:00:00]} 33. Qc3 {
[%emt 0:00:00]} Bf6 {[%emt 0:00:00]} 34. Nxf6 {[%emt 0:00:00]} Nxf6 {[%emt 0:
00:00]} 35. Rdxe5 {[%emt 0:00:00]} Rxe5 {[%emt 0:00:00]} 36. Nxe5 {[%emt 0:00:
18]} Qf5 {[%emt 0:00:00]} 37. d7 {[%emt 0:00:04]} Kh7 {[%emt 0:00:00]} 38. Qd2
{[%emt 0:00:02]} f3 {[%emt 0:00:00]} 39. gxf3 {[%emt 0:00:00]} Nxd7 {[%emt 0:
00:00]} 40. Nc6 {[%emt 0:00:25]} Ne5 {[%emt 0:00:00]} 41. Qxd8 {[%emt 0:00:00]}
Nxf3+ {[%emt 0:00:00]} 42. Kf1 {[%emt 0:00:00]} Nxe1 {[%emt 0:00:00]} 43. Qe7+
{[%emt 0:00:00]} Kh6 {[%emt 0:00:00]} 44. Qe3+ {[%emt 0:00:00]} Kh7 {[%emt 0:
00:00]} 45. Kxe1 {[%emt 0:00:00]} Qb1+ {[%emt 0:00:00]} 46. Ke2 {[%emt 0:00:00]
} Qc2+ {[%emt 0:00:00]} 47. Kf3 {[%emt 0:00:00]} Qxc4 {[%emt 0:00:00]} 48. Qe7+
{[%emt 0:00:00]} Kg8 {[%emt 0:00:00]} 49. Qd8+ {[%emt 0:00:00]} Kg7 {[%emt 0:
00:00]} 50. Qe7+ {[%emt 0:00:00]} Kg8 {[%emt 0:00:00]} 51. Ne5 {[%emt 0:00:00]}
Qd5+ {[%emt 0:00:00]} 52. Kg3 {[%emt 0:00:00]} c4 {[%emt 0:00:00]} 53. Qe8+ {
[%emt 0:00:00]} Kg7 {[%emt 0:00:00]} 54. Qxg6+ {[%emt 0:00:00]} Kf8 {[%emt 0:
00:00]} 55. Qf6+ {[%emt 0:00:00]} Kg8 {[%emt 0:00:00]} 56. Qg5+ {[%emt 0:00:00]
} Kh7 {[%emt 0:00:00]} 57. Qg6+ {[%emt 0:00:00]} 1-0